[Event "2nd Father Cup Blitz 2023"]
[Site "Rasht"]
[Date "2023.12.07"]
[Round "11.4"]
[White "Salimiyan, Behzad"]
[Black "Mosadeghpour, Masoud"]
[Result "0-1"]
[ECO "D00"]
[WhiteElo "2111"]
[BlackElo "2473"]
[Annotator "RC"]
[PlyCount "98"]
[EventDate "2023.12.07"]
[EventType "swiss"]
[EventCountry "IRI"]
[SourceTitle "playchess.com"]
[Source "ChessBase"]
[SourceQuality "1"]
[TimeControl "300+2"]

1. d4 {[%emt 0:00:01]} Nf6 {[%emt 0:00:06]} 2. Nf3 {[%emt 0:00:02]} g6 {[%emt 0:00:04]} 3. Nc3 {[%emt 0:00:01]} d5 {[%emt 0:00:03]} 4. Bf4 {[%emt 0:00:01]} Bg7 {[%emt 0:00:03]} 5. Nb5 {[%emt 0:00:01]} Na6 {[%emt 0:00:02]} 6. e3 {[%emt 0:00:02]} O-O {[%emt 0:00:06]} 7. h3 {[%emt 0:00:03]} c5 {[%emt 0:00:13]} 8. c3 {[%emt 0:00:04]} Qb6 {[%emt 0:00:11]} 9. a4 {[%emt 0:00:03]} c4 {[%emt 0:00:05]} 10. Be2 {[%emt 0:00:27]} Bd7 {[%emt 0:00:03]} 11. b3 {[%emt 0:00:01]} Rfc8 {[%emt 0:00:36]} 12. bxc4 {[%emt 0:00:05]} dxc4 {[%emt 0:00:01]} 13. Rb1 {[%emt 0:00:25]} Bf5 {[%emt 0:00:25]} 14. Rb2 {[%emt 0:00:20]} Nd5 {[%emt 0:00:02]} 15. Qd2 {[%emt 0:00:20]} Nxf4 {[%emt 0:00:03]} 16. exf4 {[%emt 0:00:02]} Qa5 {[%emt 0:00:19]} 17. O-O {[%emt 0:00:07]} Qxa4 {[%emt 0:00:40]} 18. Ne5 {[%emt 0:00:23]} Be4 {[%emt 0:00:26]} 19. f3 {[%emt 0:00:23]} Bd5 {[%emt 0:00:03]} 20. Rfb1 {[%emt 0:00:04]} Qa5 {[%emt 0:00:07]} 21. Ra2 {[%emt 0:00:03]} Qd8 {[%emt 0:00:06]} 22. Ra4 {[%emt 0:00:09]} Be6 {[%emt 0:00:29]} 23. Bxc4 {[%emt 0:00:51]} Bxc4 {[%emt 0:00:13]} 24. Rxc4 {[%emt 0:00:02]} Bxe5 {[%emt 0:00:17]} 25. Rxc8 {[%emt 0:00:01]} Bxd4+ {[%emt 0:00:04]} 26. Qxd4 {[%emt 0:00:14]} Rxc8 {[%emt 0:00:11]} 27. Nxa7 {[%emt 0:00:15]} Qxd4+ {[%emt 0:00:58]} 28. cxd4 {[%emt 0:00:02]} Rc7 {[%emt 0:00:00]} 29. Nb5 {[%emt 0:00:03]} Rc4 {[%emt 0:00:00]} 30. Kf2 {[%emt 0:00:26]} Rc2+ {[%emt 0:00:00]} 31. Kg3 {[%emt 0:00:10]} h5 {[%emt 0:00:00]} 32. h4 {[%emt 0:00:07]} Kg7 {[%emt 0:00:00]} 33. Na7 {[%emt 0:00:13]} Rc7 {[%emt 0:00:00]} 34. Nb5 {[%emt 0:00:01]} Rc4 {[%emt 0:00:00]} 35. Na7 {[%emt 0:00:05]} Nb4 {[%emt 0:00:00]} 36. Nb5 {[%emt 0:00:02]} Nd5 {[%emt 0:00:00]} 37. Rb3 {[%emt 0:00:13]} b6 {[%emt 0:00:00]} 38. Rb1 {[%emt 0:00:26]} Rc2 {[%emt 0:00:00]} 39. Rb3 {[%emt 0:00:00]} Rd2 {[%emt 0:00:00]} 40. Ra3 {[%emt 0:00:00]} e6 {[%emt 0:00:00]} 41. Rb3 {[%emt 0:00:00]} Ne7 {[%emt 0:00:00]} 42. Kh3 {[%emt 0:00:00]} Nf5 {[%emt 0:00:10]} 43. g4 {[%emt 0:00:01]} Ne7 {[%emt 0:00:01]} 44. Kg3 {[%emt 0:00:06]} Nd5 {[%emt 0:00:04]} 45. Ra3 {[%emt 0:00:07]} Nf6 {[%emt 0:00:16]} 46. Ra7 {[%emt 0:00:02]} hxg4 {[%emt 0:00:07]} 47. Nd6 {[%emt 0:00:02]} Nh5+ {[%emt 0:00:02]} 48. Kxg4 {[%emt 0:00:02]} Rg2+ 49. Kh3 {[%emt 0:00:00]} Nxf4# {[%emt 0:00:00]} 0-1

[Event "2nd Father Cup Blitz 2023"]
[Site "Rasht"]
[Date "2023.12.07"]
[Round "12.1"]
[White "Mosadeghpour, Masoud"]
[Black "Maghsoodloo, Parham"]
[Result "0-1"]
[ECO "B15"]
[WhiteElo "2473"]
[BlackElo "2742"]
[Annotator "TA"]
[PlyCount "44"]
[EventDate "2023.12.07"]
[EventType "swiss"]
[EventCountry "IRI"]
[SourceTitle "playchess.com"]
[Source "ChessBase"]
[SourceQuality "1"]
[TimeControl "300+2"]

{[%evp 10,44,26,16,18,12,15,6,10,0,11,-1,-2,-2,0,0,0,-18,0,0,20,3,8,-79,-62,-381,-363,-374,-372,-365,-377,-280,-357,-408,-403,-572,-537]} 1. e4 {[%emt 0:00:02]} c6 {[%emt 0:00:01]} 2. d4 {[%emt 0:00:08]} d5 {[%emt 0:00:01]} 3. Nd2 {[%emt 0:04:58]} dxe4 {[%emt 0:00:01]} 4. Nxe4 {[%emt 0:00:00]} Nf6 {[%emt 0:00:01]} 5. Nxf6+ {[%emt 0:00:00]} exf6 {[%emt 0:00:01]} 6. Bc4 {[%emt 0:00:00]} Na6 {[%emt 0:00:06][%cal Bb8a6,Ba6c7,Bc7d5][%mdl 32] B15: Caro-Kann: 3 Nc3: 3...g6 and 3...dxe4 4 Nxe4 Nf6 5 Nxf6+ exf6.} 7. Nf3 {[%emt 0:00:00]} Be7 $5 {[%emt 0:00:11][%mdl 4] Exploring less charted territory.} 8. O-O {[%emt 0:00:00]} Nc7 {[%emt 0:00:03] [#] The position is equal.} 9. Qd3 $146 {[%emt 0:00:00]} ({Predecessor:} 9. h3 O-O 10. Re1 a5 11. a4 Bd6 12. c3 Re8 13. Rxe8+ Qxe8 14. Qc2 Be6 15. Bxe6 Qxe6 {1-0 Karthikeyan,M (2630)-Sasikiran,K (2640) Chess Super League 2021 (2.3)}) 9... O-O {[%emt 0:00:11]} 10. Nh4 {[%emt 0:00:00]} Re8 {[%emt 0:00:41]} (10... b5 $5 11. Bb3 $8 c5 12. dxc5 Qxd3 13. cxd3 Bxc5 $11) 11. c3 $1 {[%emt 0:00:00]} Nd5 {[%emt 0:00:10]} 12. Bd2 {[%emt 0:00:00]} Be6 {[%emt 0:00:24]} 13. f4 {[%emt 0:00:00]} b5 {[%emt 0:00:06]} 14. Bb3 {[%emt 0:00:00]} Nb6 $1 {[%emt 0:00:02]} 15. Bc2 $1 {[%emt 0:00:00]} g6 $36 {[%emt 0:00:07][%mdl 2048] [#] aiming for ...f5. Black is more active.} 16. Qg3 {[%emt 0:00:00] Prevents f5.} (16. f5 $11 Bc4 {[%mdl 64] Deflection} 17. Qh3) 16... Bd6 {[%emt 0:00:34]} (16... f5 $5 {[%cal Re7h4]} 17. Nf3 (17. Nxf5 Bxf5 18. Bxf5 Bh4 $17) 17... Nc4 $15) 17. Bxg6 $2 {[%emt 0:00:00][%mdl 8192] This costs White the game.} fxg6 $19 {[%emt 0:00:18]} ({Inferior is} 17... hxg6 18. Nxg6 f5 19. Ne7+ Kf8 20. Nxc6 $17) 18. Nxg6 {[%emt 0:00:00]} Qd7 {[%emt 0:00:30]} ({Weaker is} 18... hxg6 19. Qxg6+ Kh8 20. Qh6+ Kg8 21. Qg6+ Kh8 22. Qh6+ Kg8 23. Qg6+ $11) 19. Ne5+ {[%emt 0:00:26]} Qg7 {[%emt 0:00:02]} 20. Qxg7+ {[%emt 0:00:01]} Kxg7 {[%emt 0:00:01]} 21. Nxc6 {[%emt 0:00:02]} Nc4 {[%emt 0:00:32][%csl LRb2,LRd2] Against Na5. White is weak on the light squares} 22. Rad1 {[%emt 0:00:05]} (22. Bc1 $142 Bd5 23. b3) 22... Bg4 {[%emt 0:00:10] Weighted Error Value: White=0.50/Black=0.03 (flawless)} 0-1

[Event "2nd Father Cup Blitz 2023"]
[Site "Rasht"]
[Date "2023.12.07"]
[Round "12.2"]
[White "Khoshkalam, Seyed Mehrab"]
[Black "Daghli, Arash"]
[Result "0-1"]
[ECO "A07"]
[WhiteElo "2266"]
[BlackElo "2410"]
[Annotator "RC"]
[PlyCount "119"]
[EventDate "2023.12.07"]
[EventType "swiss"]
[EventCountry "IRI"]
[SourceTitle "playchess.com"]
[Source "ChessBase"]
[SourceQuality "1"]
[TimeControl "300+2"]

1. Nf3 {[%emt 0:00:02]} d5 {[%emt 0:00:01]} 2. g3 {[%emt 0:00:01]} g6 {[%emt 0:00:02]} 3. Bg2 {[%emt 0:00:01]} Bg7 {[%emt 0:00:01]} 4. O-O {[%emt 0:00:01]} e5 {[%emt 0:00:01]} 5. d3 {[%emt 0:00:04]} Nc6 {[%emt 0:00:01]} 6. Nc3 {[%emt 0:00:02]} Nf6 {[%emt 0:00:16]} 7. e4 {[%emt 0:00:01]} dxe4 {[%emt 0:00:02]} 8. Nxe4 {[%emt 0:00:09]} Nxe4 {[%emt 0:00:14]} 9. dxe4 {[%emt 0:00:00]} O-O {[%emt 0:00:04]} 10. c3 {[%emt 0:00:06]} a5 {[%emt 0:00:06]} 11. Qc2 {[%emt 0:00:05]} h6 {[%emt 0:00:06]} 12. Be3 {[%emt 0:00:05]} Qe7 {[%emt 0:00:04]} 13. h3 {[%emt 0:00:05]} Be6 {[%emt 0:00:01]} 14. Rfd1 {[%emt 0:00:01]} a4 {[%emt 0:00:48]} 15. Ne1 {[%emt 0:00:14]} b6 {[%emt 0:00:49]} 16. Kh2 {[%emt 0:00:05]} Na5 {[%emt 0:00:01]} 17. Nd3 {[%emt 0:00:08]} Nc4 {[%emt 0:00:01]} 18. Nb4 {[%emt 0:00:05]} Nxe3 {[%emt 0:00:02]} 19. fxe3 {[%emt 0:00:00]} Qc5 {[%emt 0:00:10]} 20. Qe2 {[%emt 0:00:14]} c6 {[%emt 0:00:12]} 21. Rd2 {[%emt 0:00:10]} h5 {[%emt 0:00:07]} 22. Rad1 {[%emt 0:00:10]} Bh6 {[%emt 0:00:07]} 23. Nd3 {[%emt 0:00:35]} Qxe3 {[%emt 0:01:12]} 24. Nxe5 {[%emt 0:00:11]} Qxe2 {[%emt 0:00:02]} 25. Rxe2 {[%emt 0:00:01]} Rac8 {[%emt 0:00:00]} 26. a3 {[%emt 0:00:13]} Bg7 {[%emt 0:00:09]} 27. Nf3 {[%emt 0:00:03]} c5 {[%emt 0:00:08]} 28. Rd6 {[%emt 0:00:08]} b5 {[%emt 0:00:02]} 29. Red2 {[%emt 0:00:08]} Rb8 {[%emt 0:00:21]} 30. Ng5 {[%emt 0:00:47]} Bc4 {[%emt 0:00:01]} 31. Rc6 {[%emt 0:00:02]} Rfc8 {[%emt 0:00:04]} 32. Rxc8+ {[%emt 0:00:15]} Rxc8 {[%emt 0:00:01]} 33. Nf3 {[%emt 0:00:09]} Rb8 {[%emt 0:00:11]} 34. e5 {[%emt 0:00:11]} Re8 {[%emt 0:00:15]} 35. Rf2 {[%emt 0:00:29]} Bxe5 {[%emt 0:00:08]} 36. h4 {[%emt 0:00:21]} Bd6 {[%emt 0:00:11]} 37. Nd2 {[%emt 0:00:12]} Bd3 {[%emt 0:00:06]} 38. Bf3 {[%emt 0:00:10]} Kg7 {[%emt 0:00:02]} 39. Kg2 {[%emt 0:00:02]} f5 {[%emt 0:00:03]} 40. Bc6 {[%emt 0:00:02]} Re3 {[%emt 0:00:02]} 41. Rf3 {[%emt 0:00:06]} Rxf3 {[%emt 0:00:04]} 42. Kxf3 {[%emt 0:00:02]} Kf6 {[%emt 0:00:03]} 43. Ke3 {[%emt 0:00:04]} Bc2 {[%emt 0:00:03]} 44. Kf2 {[%emt 0:00:03]} b4 {[%emt 0:00:06]} 45. Nc4 {[%emt 0:00:06]} bxa3 {[%emt 0:00:00]} 46. Nxa3 {[%emt 0:00:05]} Bb3 {[%emt 0:00:00]} 47. Nb1 {[%emt 0:00:04]} f4 {[%emt 0:00:02]} 48. Nd2 {[%emt 0:00:10]} fxg3+ {[%emt 0:00:00]} 49. Kg2 {[%emt 0:00:12]} Bc2 {[%emt 0:00:03]} 50. Be4 {[%emt 0:00:00]} Bxe4+ {[%emt 0:00:02]} 51. Nxe4+ {[%emt 0:00:00]} Ke5 {[%emt 0:00:01]} 52. Nxg3 {[%emt 0:00:00]} Kd5 {[%emt 0:00:01]} 53. Nf1 {[%emt 0:00:00]} Kc4 {[%emt 0:00:02]} 54. Kf3 {[%emt 0:00:02]} Kb3 {[%emt 0:00:01]} 55. Nd2+ {[%emt 0:00:01]} Kxb2 {[%emt 0:00:01]} 56. Nc4+ {[%emt 0:00:01]} Kb3 {[%emt 0:00:02]} 57. Nd2+ {[%emt 0:00:02]} Kc2 {[%emt 0:00:03]} 58. Nc4 {[%emt 0:00:01]} Bc7 {[%emt 0:00:03]} 59. Ne3+ {[%emt 0:00:01]} Kb3 {[%emt 0:00:01]} 60. Nd5 {[%emt 0:00:03]} 0-1

[Event "2nd Father Cup Blitz 2023"]
[Site "Rasht"]
[Date "2023.12.07"]
[Round "12.3"]
[White "Ahmadi, Erfan"]
[Black "Tahbaz, Arash"]
[Result "0-1"]
[ECO "B01"]
[WhiteElo "2031"]
[BlackElo "2423"]
[Annotator "RC"]
[PlyCount "66"]
[EventDate "2023.12.07"]
[EventType "swiss"]
[EventCountry "IRI"]
[SourceTitle "playchess.com"]
[Source "ChessBase"]
[SourceQuality "1"]
[TimeControl "300+2"]

1. e4 {[%emt 0:00:01]} d5 {[%emt 0:00:06]} 2. exd5 {[%emt 0:00:02]} Qxd5 {[%emt 0:00:01]} 3. Nc3 {[%emt 0:00:02]} Qa5 {[%emt 0:00:00]} 4. d4 {[%emt 0:00:03]} Nf6 {[%emt 0:00:01]} 5. Nf3 {[%emt 0:00:02]} c6 {[%emt 0:00:01]} 6. Bd3 {[%emt 0:00:04]} Bg4 {[%emt 0:00:23]} 7. O-O {[%emt 0:00:10]} Nbd7 {[%emt 0:00:01]} 8. h3 {[%emt 0:00:10]} Bh5 {[%emt 0:00:01]} 9. Bd2 {[%emt 0:00:08]} Qc7 {[%emt 0:00:06]} 10. Qe2 {[%emt 0:00:18]} e6 {[%emt 0:00:02]} 11. Qe3 {[%emt 0:00:04]} Be7 {[%emt 0:00:18]} 12. Rfe1 {[%emt 0:00:04]} O-O {[%emt 0:00:03]} 13. Ne5 {[%emt 0:00:10]} Rad8 {[%emt 0:00:14]} 14. g4 {[%emt 0:00:32]} Bg6 {[%emt 0:04:13]} 15. Nxg6 {[%emt 0:00:37]} hxg6 {[%emt 0:00:00]} 16. Ne2 {[%emt 0:00:04]} c5 {[%emt 0:00:00]} 17. c3 {[%emt 0:00:08]} Nb6 {[%emt 0:00:00]} 18. Rad1 {[%emt 0:00:19]} Rd7 {[%emt 0:00:00]} 19. Qf3 {[%emt 0:00:31]} a6 {[%emt 0:00:00]} 20. Bf4 {[%emt 0:00:03]} Bd6 {[%emt 0:00:00]} 21. dxc5 {[%emt 0:00:21]} Qxc5 {[%emt 0:00:00]} 22. Bxd6 {[%emt 0:00:15]} Rxd6 {[%emt 0:00:00]} 23. Qxb7 {[%emt 0:00:12]} Rfd8 {[%emt 0:00:00]} 24. Qf3 {[%emt 0:00:27]} Nc4 {[%emt 0:00:00]} 25. b4 {[%emt 0:00:09]} Qc7 {[%emt 0:00:00]} 26. Bc2 {[%emt 0:00:02]} Rd2 {[%emt 0:00:00]} 27. Nd4 {[%emt 0:00:15]} R8xd4 {[%emt 0:00:00]} 28. cxd4 {[%emt 0:00:02]} Rxc2 {[%emt 0:00:00]} 29. Qb3 {[%emt 0:00:12]} Rb2 {[%emt 0:00:00]} 30. Qd3 {[%emt 0:00:09]} Nd5 {[%emt 0:00:00]} 31. Rc1 {[%emt 0:00:07]} Qf4 {[%emt 0:00:00]} 32. Rc2 {[%emt 0:00:04]} Nxb4 {[%emt 0:00:00]} 33. Qxc4 {[%emt 0:00:05]} Rxc2 {[%emt 0:00:00]} 0-1

[Event "2nd Father Cup Blitz 2023"]
[Site "Rasht"]
[Date "2023.12.07"]
[Round "12.4"]
[White "Pourramezanali, Amirreza"]
[Black "Ramezani, Mahan"]
[Result "0-1"]
[ECO "C09"]
[WhiteElo "2500"]
[BlackElo "2307"]
[Annotator "RC"]
[PlyCount "120"]
[EventDate "2023.12.07"]
[EventType "swiss"]
[EventCountry "IRI"]
[SourceTitle "playchess.com"]
[Source "ChessBase"]
[SourceQuality "1"]
[TimeControl "300+2"]

1. e4 {[%emt 0:00:01]} c5 {[%emt 0:00:01]} 2. c3 {[%emt 0:00:01]} e6 {[%emt 0:00:02]} 3. d4 {[%emt 0:00:01]} d5 {[%emt 0:00:00]} 4. exd5 {[%emt 0:00:01]} exd5 {[%emt 0:00:01]} 5. Nf3 {[%emt 0:00:02]} Nc6 {[%emt 0:00:03]} 6. Bb5 {[%emt 0:00:01]} Bd6 {[%emt 0:00:07]} 7. O-O {[%emt 0:00:02]} Nge7 {[%emt 0:00:00]} 8. dxc5 {[%emt 0:00:02]} Bxc5 {[%emt 0:00:02]} 9. Nbd2 {[%emt 0:00:02]} O-O {[%emt 0:00:04]} 10. Nb3 {[%emt 0:00:02]} Bd6 {[%emt 0:00:17]} 11. Be3 {[%emt 0:00:06]} a6 {[%emt 0:00:08]} 12. Be2 {[%emt 0:00:03]} Ng6 {[%emt 0:00:12]} 13. Re1 {[%emt 0:00:26]} Be6 {[%emt 0:00:05]} 14. Bc5 {[%emt 0:00:05]} Re8 {[%emt 0:00:10]} 15. Bxd6 {[%emt 0:00:09]} Qxd6 {[%emt 0:00:01]} 16. g3 {[%emt 0:00:38]} Rad8 {[%emt 0:00:23]} 17. Qc2 {[%emt 0:00:48]} h5 {[%emt 0:01:03]} 18. Rad1 {[%emt 0:00:06]} h4 {[%emt 0:00:13]} 19. Nbd4 {[%emt 0:00:23]} Nxd4 20. Nxd4 Ne5 {[%emt 0:00:40]} 21. Qd2 {[%emt 0:00:20]} Qe7 {[%emt 0:00:40]} 22. f4 {[%emt 0:00:48]} Nc6 {[%emt 0:00:14]} 23. Nxc6 {[%emt 0:00:03]} bxc6 {[%emt 0:00:01]} 24. Bxa6 {[%emt 0:00:02]} Qa7+ {[%emt 0:00:00]} 25. Qf2 {[%emt 0:00:10]} Qxa6 {[%emt 0:00:01]} 26. f5 {[%emt 0:00:05]} Bd7 {[%emt 0:00:02]} 27. f6 {[%emt 0:00:03]} Qc4 {[%emt 0:00:29]} 28. Rd4 {[%emt 0:00:09]} Rxe1+ {[%emt 0:00:17]} 29. Qxe1 {[%emt 0:00:01]} Qc5 {[%emt 0:00:00]} 30. fxg7 {[%emt 0:00:12]} Re8 {[%emt 0:00:03]} 31. Qf2 {[%emt 0:00:02]} hxg3 {[%emt 0:00:05]} 32. hxg3 {[%emt 0:00:12]} Re4 {[%emt 0:00:08]} 33. Qf6 {[%emt 0:00:22]} Qe7 {[%emt 0:00:07]} 34. Qxe7 {[%emt 0:00:10]} Rxe7 {[%emt 0:00:01]} 35. c4 {[%emt 0:00:13]} Be6 {[%emt 0:00:03]} 36. c5 {[%emt 0:00:02]} Kxg7 {[%emt 0:00:02]} 37. a4 {[%emt 0:00:02]} Ra7 {[%emt 0:00:04]} 38. Kf2 {[%emt 0:00:02]} Bf5 {[%emt 0:00:01]} 39. b3 {[%emt 0:00:03]} Bc2 {[%emt 0:00:03]} 40. Rb4 {[%emt 0:00:02]} Ra5 {[%emt 0:00:01]} 41. Ke3 {[%emt 0:00:03]} Rxc5 {[%emt 0:00:01]} 42. Kd4 {[%emt 0:00:02]} Ra5 {[%emt 0:00:02]} 43. Rb6 {[%emt 0:00:05]} Bxb3 {[%emt 0:00:09]} 44. Rxb3 {[%emt 0:00:02]} Rxa4+ {[%emt 0:00:00]} 45. Ke5 {[%emt 0:00:01]} Rc4 {[%emt 0:00:03]} 46. Rb7 {[%emt 0:00:06]} d4 {[%emt 0:00:02]} 47. g4 {[%emt 0:00:04]} c5 {[%emt 0:00:02]} 48. Rd7 {[%emt 0:00:03]} Rc3 {[%emt 0:00:03]} 49. g5 {[%emt 0:00:01]} Rg3 {[%emt 0:00:04]} 50. Kf4 {[%emt 0:00:02]} Rc3 {[%emt 0:00:07]} 51. Kf5 {[%emt 0:00:04]} Rf3+ {[%emt 0:00:04]} 52. Ke4 {[%emt 0:00:02]} Rg3 {[%emt 0:00:03]} 53. Kf4 {[%emt 0:00:01]} Rg1 {[%emt 0:00:04]} 54. Rd5 {[%emt 0:00:01]} Rc1 {[%emt 0:00:01]} 55. Kf5 {[%emt 0:00:01]} Rc3 {[%emt 0:00:04]} 56. g6 {[%emt 0:00:01]} fxg6+ {[%emt 0:00:03]} 57. Kg5 {[%emt 0:00:02]} Rg3+ {[%emt 0:00:04]} 58. Kf4 {[%emt 0:00:01]} Rc3 {[%emt 0:00:02]} 59. Kg5 {[%emt 0:00:01]} Kf7 {[%emt 0:00:01]} 60. Rd6 {[%emt 0:00:01]} d3 {[%emt 0:00:02]} 0-1

[Event "2nd Father Cup Blitz 2023"]
[Site "Rasht"]
[Date "2023.12.07"]
[Round "13.1"]
[White "Maghsoodloo, Parham"]
[Black "Ramezani, Mahan"]
[Result "1-0"]
[ECO "D35"]
[WhiteElo "2742"]
[BlackElo "2307"]
[Annotator "TA"]
[PlyCount "81"]
[EventDate "2023.12.07"]
[EventType "swiss"]
[EventCountry "IRI"]
[SourceTitle "playchess.com"]
[Source "ChessBase"]
[SourceQuality "1"]
[TimeControl "300+2"]

{[%evp 18,81,34,31,42,43,54,44,68,43,44,27,68,12,0,3,82,77,105,102,93,106,120,75,120,99,114,111,112,113,114,114,118,118,118,118,117,112,117,107,108,107,110,101,110,113,109,48,172,114,95,102,156,143,144,144,346,332,765,743,727,707,816,816,1189,1181]} 1. c4 {[%emt 0:00:01]} e6 {[%emt 0:00:02]} 2. Nc3 {[%emt 0:00:01]} d5 {[%emt 0:00:01]} 3. d4 {[%emt 0:00:01]} Be7 {[%emt 0:00:02]} 4. cxd5 {[%emt 0:00:01]} exd5 {[%emt 0:00:01]} 5. Bf4 {[%emt 0:00:01]} Nf6 {[%emt 0:00:01]} 6. e3 {[%emt 0:00:01]} O-O {[%emt 0:00:03]} 7. Bd3 {[%emt 0:00:09]} c6 {[%emt 0:00:02]} 8. h3 {[%emt 0:00:08]} Re8 {[%emt 0:00:03]} 9. Nf3 {[%emt 0:00:02]} Nbd7 {[%emt 0:00:03]} 10. O-O {[%emt 0:00:03]} Bf8 {[%emt 0:00:09] D35: Queen's Gambit Declined: Exchange Variation.} 11. Qc2 {[%emt 0:00:04]} Qe7 {[%emt 0:00:18] [#]} 12. Rab1 $146 {[%emt 0:00:06]} ({Predecessor:} 12. Nd2 g6 13. Rab1 Bg7 14. b4 a6 15. a4 Nf8 16. Rfc1 Ne6 17. Bh2 Bd7 18. Nf3 {1-0 Dolezal,R (2359)-Nemec,P (2211) CZE-chT1W 1213 2012 (2.3)}) 12... g6 {[%emt 0:04:41] White is slightly better.} 13. b4 {[%emt 0:00:02] White is much more active.} (13. Rbe1 $5 {[%cal Re3e4]}) 13... Ne4 {[%emt 0:00:00]} 14. Na4 {[%emt 0:00:39]} a5 {[%emt 0:00:00]} 15. a3 {[%emt 0:00:03]} (15. b5 $14) 15... axb4 $11 {[%emt 0:00:00]} 16. axb4 {[%emt 0:00:01][%cal Ba3b4,Bb4c5,Bc5d6][%mdl 32]} Qe6 {[%emt 0:00:00]} (16... b5 $11 {keeps the balance.} 17. Nc5 Ndxc5 18. bxc5 Bg7) 17. Nc5 $16 {[%emt 0:00:07]} Ndxc5 {[%emt 0:00:00]} 18. bxc5 {[%emt 0:00:03]} Qe7 {[%emt 0:00:00]} 19. Ra1 {[%emt 0:00:14]} Bf5 {[%emt 0:00:00]} 20. Rfb1 {[%emt 0:00:03]} h5 {[%emt 0:00:00]} 21. Qb3 {[%emt 0:00:38]} Rec8 {[%emt 0:00:00]} 22. Bd6 {[%emt 0:00:13]} (22. Qxb7 $2 Qxb7 23. Rxb7 Rxa1+ $19) (22. Rxa8 Rxa8 23. Rb2 (23. Qxb7 Qxb7 24. Rxb7 Nxc5 $16) 23... Ra1+ 24. Kh2 (24. Rb1 Rxb1+ 25. Bxb1 Qd7 $14) 24... Bc8) 22... Nxd6 {[%emt 0:00:00]} 23. cxd6 {[%emt 0:00:02]} Qf6 {[%emt 0:00:00]} 24. Bxf5 {[%emt 0:00:05]} ({Resist} 24. Qxb7 $6 Rxa1 25. Rxa1 Bxd6 $11) 24... Qxf5 {[%emt 0:00:00]} 25. Rxa8 {[%emt 0:00:02]} ({Reject} 25. Qxb7 $6 Rxa1 26. Rxa1 Bxd6 $11) 25... Rxa8 {[%emt 0:00:00]} 26. Qxb7 {[%emt 0:00:03]} Rd8 {[%emt 0:00:00]} 27. Rc1 {[%emt 0:00:01]} Bxd6 {[%emt 0:00:00]} 28. Qxc6 {[%emt 0:00:06]} (28. Rxc6 $2 {perishes.} Rb8 $19) 28... Kg7 {[%emt 0:00:00]} 29. Qc2 {[%emt 0:00:06] aiming for Qxf5.} Qf6 {[%emt 0:00:00]} 30. Qe2 {[%emt 0:00:23]} g5 {[%emt 0:00:03]} 31. g3 {[%emt 0:00:11]} Qf5 {[%emt 0:00:04] [#]} 32. Kg2 {[%emt 0:00:03]} (32. h4 $1 $16) 32... g4 {[%emt 0:00:11]} ({Black should try} 32... Qe4 $1 $14 33. Kg1 Qf5) 33. Nh4 {[%emt 0:00:38]} ({White should play} 33. hxg4 $18 Qxg4 34. Qc2) 33... Qe4+ {[%emt 0:00:05]} 34. Kh2 {[%emt 0:00:01]} Be7 {[%emt 0:00:06]} (34... Rb8 $142) 35. Ng2 {[%emt 0:00:04][%cal Bh4g2,Bg2f4,Bf4d5][%mdl 32]} Rb8 {[%emt 0:00:06]} 36. Nf4 {[%emt 0:00:10]} Qf5 {[%emt 0:00:00]} (36... Rh8 $16 37. Qf1 h4) 37. Qc2 {[%emt 0:00:04]} Qg5 {[%emt 0:00:11]} (37... Qxc2 38. Rxc2 Rh8 39. Nxd5 Bd6) 38. h4 $18 {[%emt 0:00:02] White is clearly winning.} Qh6 {[%emt 0:00:01]} 39. Qf5 {[%emt 0:00:02] [#] Strongly threatening Qe5+.} Rh8 {[%emt 0:00:02]} 40. Rc7 {[%emt 0:00:05]} Qd6 {[%emt 0:00:01]} 41. Nxd5 {[%emt 0:00:04] Weighted Error Value: White=0.14 (very precise) /Black=0.34} 1-0

[Event "2nd Father Cup Blitz 2023"]
[Site "Rasht"]
[Date "2023.12.07"]
[Round "13.2"]
[White "Daghli, Arash"]
[Black "Tahbaz, Arash"]
[Result "0-1"]
[ECO "A13"]
[WhiteElo "2410"]
[BlackElo "2423"]
[Annotator "RC"]
[PlyCount "52"]
[EventDate "2023.12.07"]
[EventType "swiss"]
[EventCountry "IRI"]
[SourceTitle "playchess.com"]
[Source "ChessBase"]
[SourceQuality "1"]
[TimeControl "300+2"]

1. c4 {[%emt 0:00:01]} e6 {[%emt 0:00:08]} 2. Nf3 {[%emt 0:00:02]} Nf6 {[%emt 0:00:02]} 3. Nc3 {[%emt 0:00:25]} d5 {[%emt 0:00:01]} 4. e3 {[%emt 0:00:03]} Be7 {[%emt 0:00:02]} 5. b3 {[%emt 0:00:04]} O-O {[%emt 0:00:21]} 6. Bb2 {[%emt 0:00:01]} c5 {[%emt 0:00:01]} 7. cxd5 {[%emt 0:00:01]} exd5 {[%emt 0:00:01]} 8. d4 {[%emt 0:00:02]} cxd4 {[%emt 0:00:01]} 9. Nxd4 {[%emt 0:00:01]} Nc6 {[%emt 0:00:02]} 10. Bb5 {[%emt 0:00:22]} Ne5 {[%emt 0:00:46]} 11. O-O {[%emt 0:00:03]} Bd6 {[%emt 0:00:03]} 12. h3 {[%emt 0:00:30]} a6 {[%emt 0:00:01]} 13. Be2 {[%emt 0:00:02]} Re8 {[%emt 0:00:02]} 14. Nf3 {[%emt 0:00:10]} Nc6 {[%emt 0:00:35]} 15. Bd3 {[%emt 0:00:01]} Qe7 {[%emt 0:00:12]} 16. Ne2 {[%emt 0:00:01]} Ne4 {[%emt 0:00:07]} 17. Nf4 {[%emt 0:00:06]} Be6 {[%emt 0:00:20]} 18. Rc1 {[%emt 0:00:09]} Rad8 {[%emt 0:00:01]} 19. Nd4 {[%emt 0:00:28]} Nxd4 {[%emt 0:00:15]} 20. Bxd4 {[%emt 0:00:01]} Rc8 {[%emt 0:00:22]} 21. Qh5 {[%emt 0:01:30]} Bxf4 {[%emt 0:00:39]} 22. exf4 {[%emt 0:00:01]} f6 {[%emt 0:00:00]} 23. Rxc8 {[%emt 0:00:34]} Rxc8 {[%emt 0:00:02]} 24. Re1 {[%emt 0:00:01]} Qb4 {[%emt 0:00:08]} 25. Rxe4 {[%emt 0:01:05]} dxe4 {[%emt 0:00:02]} 26. Bxe4 {[%emt 0:00:01]} Qe1+ {[%emt 0:00:01]} 0-1